bitfinex/quotes_SOLUSD_20260223
["timestamp","ask_amount","ask_price","bid_price","bid_amount"]
[1771852796391,0.75603894,80.619,80.595,3.12318484]
[1771852798616,0.75603894,80.619,80.596,12.40756365]
[1771852800814,7.74858936,80.61,80.547,12.41511167]
[1771852801114,3.87429468,80.58,80.547,12.41511167]
[1771852802811,3.87429468,80.6,80.547,12.41511167]
[1771852802812,3.87429468,80.6,80.56,3.87429468]
[1771852802998,0.82421837,80.601,80.561,3.12318484]
[1771852803403,3.87429468,80.6,80.561,3.12318484]
[1771852803597,0.8278271,80.599,80.561,3.12318484]
[1771852806816,6.48042954,80.619,80.563,3.12318484]
[1771852806817,3.87429468,80.59,80.563,3.12318484]
[1771852807318,3.87767132,80.59,80.563,3.12318484]
[1771852807522,4.71952358,80.59,80.563,3.12318484]
[1771852809622,0.84862552,80.589,80.565,3.12318484]
[1771852811419,31.01114035,80.617,80.565,3.12318484]
[1771852811619,31.01114035,80.617,80.564,43.44372175]
[1771852811620,0.85524407,80.609,80.567,3.12318484]
[1771852811818,0.85524407,80.608,80.571,3.12318484]
[1771852812027,4.73291539,80.6,80.571,3.12318484]
[1771852816231,4.73291539,80.6,80.572,12.41125949]
[1771852816417,4.73291539,80.6,80.573,3.12318484]
[1771852818318,0.87724103,80.599,80.575,2.91613296]
[1771852819333,12.4061646,80.606,80.575,2.91613296]
[1771852819528,0.8861372,80.615,80.581,3.14829554]
[1771852820628,0.8861372,80.615,80.583,3.14829554]
[1771852822337,0.8861372,80.615,80.591,3.14829554]
[1771852822637,0.89189899,80.62,80.591,3.14829554]
[1771852823030,3.87767132,80.62,80.593,3.14829554]
[1771852823337,0.89473034,80.619,80.593,3.14829554]
[1771852828142,0.89473034,80.619,80.595,3.14829554]
[1771852832047,3.87767132,80.64,80.585,3.14829554]
[1771852832048,0.91879302,80.609,80.585,3.14829554]
[1771852833253,0.92131547,80.599,80.584,12.40941129]
[1771852834150,3.87767132,80.59,80.572,3.14829554]
[1771852834358,0.92380895,80.589,80.572,3.14829554]
[1771852835437,0.92380895,80.589,80.573,12.41110545]
[1771852836341,0.92380895,80.589,80.574,3.14829554]
[1771852836552,0.92871031,80.597,80.574,3.14829554]
[1771852837456,0.92871031,80.597,80.569,3.14829554]
[1771852838547,3.87767132,80.6,80.569,3.14829554]
[1771852838750,3.87767132,80.6,80.571,3.14829554]
[1771852839049,0.93585325,80.599,80.571,3.14829554]
[1771852839743,0.93585325,80.599,80.573,3.14829554]
[1771852841060,0.94047952,80.599,80.573,3.14829554]
[1771852844161,0.94047952,80.599,80.574,43.43832997]
[1771852844360,3.87767132,80.61,80.575,3.14829554]
[1771852844567,4.82489288,80.61,80.575,3.14829554]
[1771852845650,0.94722156,80.61,80.581,3.14829554]
[1771852847150,13.35929659,80.609,80.583,3.14829554]
[1771852847354,0.95373394,80.608,80.583,3.14829554]
[1771852848155,0.95795182,80.619,80.585,3.03208108]
[1771852848355,12.40386676,80.621,80.591,3.03208108]
[1771852849262,3.87767132,80.63,80.593,3.21841437]
[1771852849848,4.84177001,80.63,80.593,3.21841437]
[1771852850149,0.96409869,80.629,80.593,3.21841437]
[1771852854376,0.96409869,80.629,80.596,3.21841437]
[1771852858075,3.87767132,80.63,80.598,3.21841437]
[1771852858254,3.87767132,80.64,80.611,3.21841437]
[1771852858571,3.87767132,80.64,80.597,44.58618094]
[1771852858572,3.87767132,80.62,80.601,3.21841437]
[1771852859358,4.8589826,80.62,80.601,3.21841437]
[1771852860577,4.8589826,80.62,80.602,15.6250544]
[1771852860765,4.8589826,80.62,80.603,3.21841437]
[1771852860963,0.98489928,80.619,80.596,3.21841437]
[1771852861162,0.98489928,80.619,80.592,3.21841437]
[1771852862694,12.39688511,80.666,80.612,3.25131367]
[1771852862984,12.39511044,80.677,80.641,3.25131367]
[1771852863575,49.55945562,80.712,80.64,3.87767132]
[1771852863576,6.44871494,80.721,80.661,3.25131367]
[1771852863779,3.87767132,80.69,80.661,3.25131367]
[1771852864977,12.39172728,80.699,80.663,3.25131367]
[1771852865274,3.87767132,80.67,80.641,3.25131367]
[1771852865489,3.87767132,80.68,80.641,3.25131367]
[1771852868693,3.87767132,80.68,80.643,3.25131367]
[1771852869495,3.86868693,80.68,80.643,3.25131367]
[1771852870373,3.86868693,80.68,80.651,3.25131367]
[1771852870580,12.3939517,80.685,80.651,3.25131367]
[1771852871079,3.86868693,80.68,80.653,3.25131367]
[1771852871283,3.86868693,80.66,80.621,3.25131367]
[1771852871599,3.86868693,80.65,80.631,3.25131367]
[1771852871772,3.23552743,80.649,80.621,12.40371615]
[1771852873584,15.63507973,80.649,80.621,12.40371615]
[1771852873895,3.23552743,80.648,80.622,3.21841437]
[1771852874901,3.23552743,80.648,80.623,3.21841437]
[1771852875698,3.23552743,80.647,80.623,3.21841437]
[1771852875897,3.23552743,80.647,80.625,3.21841437]
[1771852876094,3.23552743,80.647,80.622,1.16024698]
[1771852876601,3.23552743,80.647,80.624,3.21841437]
[1771852876820,3.23552743,80.659,80.624,3.21841437]
[1771852877523,12.3983862,80.656,80.624,3.21841437]
[1771852877734,12.3986411,80.654,80.625,12.40310077]
[1771852877896,12.3986411,80.654,80.626,3.20880538]
[1771852879802,3.86868693,80.65,80.628,3.00230873]
[1771852880006,3.22028892,80.654,80.628,3.00230873]
[1771852885248,3.86868693,80.66,80.63,3.00230873]
[1771852885438,3.22028892,80.667,80.631,3.00230873]
[1771852886514,3.22028892,80.665,80.633,3.00230873]
[1771852889519,15.61739295,80.664,80.635,3.00230873]
[1771852890728,3.22028892,80.663,80.636,12.4014088]
[1771852890933,3.22028892,80.663,80.637,3.00230873]
[1771852892320,3.22028892,80.649,80.627,3.00230873]
[1771852892523,3.22028892,80.649,80.621,12.40371615]
[1771852892524,7.08897585,80.64,80.622,3.00230873]
[1771852892752,7.08897585,80.64,80.623,3.00230873]
[1771852893040,3.22028892,80.64,80.624,12.40325461]
[1771852894335,3.22028892,80.64,80.624,15.40556334]
[1771852894531,3.22028892,80.64,80.625,3.00230873]
[1771852894839,7.08897585,80.66,80.625,3.00230873]
[1771852895041,7.08897585,80.66,80.627,3.00230873]
[1771852896346,3.22028892,80.659,80.629,3.00230873]
[1771852899230,3.22028892,80.659,80.631,3.00230873]
[1771852900350,3.86868693,80.66,80.631,3.00230873]
[1771852900649,3.21604187,80.665,80.631,3.00230873]
[1771852900824,3.21494757,80.676,80.64,3.86868693]
[1771852901026,3.21494757,80.679,80.641,3.00230873]
[1771852901348,3.86868693,80.65,80.633,3.00230873]
[1771852902525,3.86868693,80.65,80.634,12.40171639]
[1771852902950,3.21494757,80.654,80.634,12.40171639]
[1771852903247,3.86868693,80.65,80.634,12.40171639]
[1771852903446,3.21494757,80.654,80.634,12.40171639]
[1771852904648,3.21494757,80.654,80.634,3.00230873]
[1771852905052,3.21069463,80.66,80.634,3.00230873]
[1771852906057,3.20966174,80.659,80.634,3.00230873]
[1771852907062,3.20966174,80.659,80.636,3.00230873]
[1771852907650,3.20864073,80.664,80.636,3.00230873]
[1771852907953,12.39725772,80.663,80.636,3.00230873]
[1771852908156,3.19527133,80.662,80.636,3.00230873]
[1771852909743,3.19527133,80.659,80.636,3.00230873]
[1771852912163,3.19527133,80.659,80.638,3.02877048]
[1771852920856,3.19527133,80.659,80.639,12.40094743]
[1771852921171,3.19527133,80.659,80.64,3.02877048]
[1771852922145,3.19527133,80.649,80.615,31.011491]
[1771852922359,3.19527133,80.649,80.616,1.16024698]
[1771852923465,3.19527133,80.649,80.616,12.40448546]
[1771852923952,3.19527133,80.649,80.62,3.86868693]
[1771852924159,3.19527133,80.649,80.621,3.02877048]
[1771852927470,3.19527133,80.649,80.622,12.4035623]
[1771852927678,3.19527133,80.649,80.623,3.02877048]
[1771852930380,3.19527133,80.647,80.61,3.86868693]
[1771852930677,3.19527133,80.639,80.611,12.40525486]
[1771852931562,3.19527133,80.639,80.611,15.43402534]
[1771852931763,3.19527133,80.639,80.612,3.02877048]
[1771852935081,12.40110121,80.638,80.613,12.40494709]
[1771852935278,3.19527133,80.629,80.599,3.02877048]
[1771852935479,12.40061517,80.642,80.6,3.02877048]
[1771852935664,12.40061517,80.642,80.611,3.02877048]
[1771852935984,3.87277592,80.64,80.611,3.02877048]
[1771852936484,3.87277592,80.64,80.613,3.02877048]
[1771852937572,2.29659338,80.639,80.613,3.02877048]
[1771852939283,2.29659338,80.639,80.615,2.94917926]
[1771852941070,2.29659338,80.639,80.617,2.94917926]
[1771852941982,14.69759894,80.639,80.617,2.94917926]
[1771852942179,2.28057311,80.638,80.617,2.94917926]
[1771852943691,2.27279492,80.658,80.619,2.94917926]
[1771852943984,2.27279492,80.658,80.621,2.94917926]
[1771852944985,2.2689727,80.649,80.621,2.94917926]
[1771852948088,2.2689727,80.649,80.622,12.4035623]
[1771852948270,3.13378477,80.639,80.611,1.16024698]
[1771852948470,3.13378477,80.639,80.607,12.40587045]
[1771852950380,3.13378477,80.639,80.61,2.94917926]
[1771852950583,3.13378477,80.639,80.611,2.94917926]
[1771852953991,3.13378477,80.639,80.613,2.94917926]
[1771852955496,3.13378477,80.637,80.613,2.94917926]
[1771852956490,3.13378477,80.637,80.613,12.40480144]
[1771852956694,3.13378477,80.637,80.615,12.40463933]
[1771852956990,3.13378477,80.637,80.615,15.35381859]
[1771852958892,3.13378477,80.637,80.616,2.94917926]
[1771852967692,3.08929144,80.674,80.631,3.09562418]
[1771852967891,3.08929144,80.659,80.631,3.09562418]
[1771852969305,3.08929144,80.659,80.63,3.87277592]
[1771852969306,3.08929144,80.664,80.633,3.09562418]
[1771852970491,3.08929144,80.664,80.635,3.09562418]
[1771852973717,3.08929144,80.664,80.637,3.09562418]
[1771852977015,3.08929144,80.664,80.641,3.09562418]
[1771852977213,3.08929144,80.67,80.641,3.09562418]
[1771852981621,3.08929144,80.669,80.643,3.09562418]
[1771852984519,3.08929144,80.669,80.645,3.09562418]
[1771852984715,3.08929144,80.667,80.645,3.09562418]
[1771852988427,3.69383402,80.647,80.59,12.4084874]
[1771852988631,3.87277592,80.62,80.591,3.09562418]
[1771852989904,3.87277592,80.64,80.609,3.09562418]
[1771852990828,3.87277592,80.64,80.611,3.09562418]
[1771852992028,2.0118537,80.639,80.611,3.09562418]
[1771852993336,2.01029687,80.638,80.613,3.09562418]
[1771852999038,1.98872489,80.636,80.613,3.09562418]
[1771852999842,1.98576244,80.629,80.603,3.11315047]
[1771853000015,1.98576244,80.609,80.583,3.11315047]
[1771853000216,3.87285301,80.6,80.583,3.11315047]
[1771853001546,3.87285301,80.6,80.584,15.52256176]
[1771853002241,1.98576244,80.601,80.585,3.11315047]
[1771853004040,3.87285301,80.6,80.585,3.11315047]
[1771853008843,1.96595643,80.602,80.585,3.11315047]
[1771853012842,1.95020909,80.599,80.574,3.11315047]
[1771853014653,12.40714858,80.599,80.577,3.11315047]
[1771853014839,1.94519791,80.598,80.577,3.11315047]
[1771853015450,31.01030952,80.619,80.58,3.87285301]
[1771853015656,1.9427354,80.617,80.581,3.11315047]
[1771853016853,5.81315419,80.63,80.591,3.11315047]
[1771853017151,5.81315419,80.63,80.593,3.11315047]
[1771853017152,1.94030118,80.629,80.593,3.11315047]
[1771853017350,1.94030118,80.629,80.592,1.16024698]
[1771853017351,3.87285301,80.64,80.601,3.11315047]
[1771853017656,1.94030118,80.642,80.611,3.11315047]
[1771853017857,12.39987104,80.646,80.611,3.11315047]
[1771853018236,14.33776596,80.646,80.611,3.11315047]
[1771853018541,1.93789492,80.645,80.611,3.11315047]
[1771853019955,30.99731031,80.653,80.582,204.7603683]
[1771853019956,3.87285301,80.64,80.613,3.11315047]
[1771853020552,1.933165,80.643,80.613,3.11315047]
[1771853022247,14.32902919,80.642,80.615,3.11315047]
[1771853023161,1.9262719,80.641,80.615,3.11315047]
[1771853024365,1.9262719,80.641,80.617,3.11315047]
[1771853029046,1.9262719,80.641,80.619,3.00339204]
[1771853031569,5.77982271,80.64,80.619,3.00339204]
[1771853032376,1.90494628,80.639,80.619,3.00339204]
[1771853034176,12.40110121,80.638,80.619,3.00339204]
[1771853034970,1.89901442,80.637,80.619,3.00339204]
[1771853035449,3.87285301,80.64,80.619,3.00339204]
[1771853035450,5.76993538,80.64,80.619,3.00339204]
[1771853035652,1.89708237,80.639,80.619,3.00339204]
[1771853046878,1.87723989,80.637,80.619,3.00339204]
[1771853052402,61.96598702,80.69,80.621,3.00339204]
[1771853052688,61.96598702,80.69,80.598,49.628786]
[1771853052689,49.5337253,80.754,80.67,3.87285301]
[1771853052862,2.19617543,80.717,80.69,3.87285301]
[1771853053188,2.39617543,80.7,80.67,3.87285301]
[1771853053478,2.19617543,80.698,80.66,3.86584313]
[1771853053867,2.19617543,80.698,80.67,3.86584313]
[1771853054684,2.19617543,80.698,80.671,12.39602831]
[1771853054861,2.19617543,80.698,80.672,3.00339204]
[1771853055785,2.19152138,80.696,80.672,3.00339204]
[1771853056366,2.19152138,80.696,80.673,15.39911303]
[1771853060790,2.18246738,80.679,80.648,2.81537321]
[1771853060992,2.18246738,80.679,80.606,1.16024698]
[1771853060993,3.86584313,80.66,80.631,2.81537321]
[1771853061192,2.18246738,80.659,80.631,2.81537321]
[1771853061491,2.18246738,80.659,80.633,2.81537321]
[1771853061693,2.18136029,80.686,80.651,2.81537321]
[1771853063601,14.57306154,80.685,80.653,2.81537321]
[1771853063797,2.17918412,80.684,80.653,2.81537321]
[1771853065506,2.17811474,80.679,80.653,2.81537321]
[1771853068104,2.17811474,80.679,80.654,12.3986411]
[1771853068402,2.17811474,80.679,80.655,2.81537321]
[1771853072684,2.17811474,80.679,80.656,12.39833366]
[1771853072916,2.17811474,80.679,80.657,2.81537321]
[1771853073899,2.17811474,80.679,80.658,12.39802623]
[1771853074107,2.17811474,80.679,80.659,2.81537321]
[1771853076704,2.16620108,80.679,80.656,2.81537321]
[1771853076908,2.16620108,80.669,80.644,2.81537321]
[1771853077296,2.16620108,80.659,80.639,2.81537321]
[1771853077608,2.16620108,80.649,80.611,2.81537321]
[1771853077806,3.86584313,80.65,80.611,2.81537321]
[1771853077994,2.16528082,80.639,80.613,2.81537321]
[1771853082915,2.16528082,80.639,80.615,2.81537321]
[1771853083811,2.16528082,80.639,80.617,2.81537321]
[1771853084115,2.15997707,80.644,80.617,2.81537321]
[1771853084413,14.56030939,80.643,80.617,2.81537321]
[1771853084615,2.15912831,80.642,80.617,2.81537321]
[1771853088322,2.15582963,80.639,80.619,2.96084699]
[1771853090021,2.78195523,80.629,80.59,3.86584313]
[1771853090211,2.78195523,80.629,80.591,1.16024698]
[1771853090520,2.78195523,80.619,80.58,3.86584313]
[1771853090706,3.86584313,80.61,80.58,3.86584313]
[1771853090912,2.78195523,80.611,80.58,3.86584313]
[1771853092225,2.78195523,80.611,80.581,2.96084699]
[1771853092528,2.78195523,80.611,80.582,2.96084699]
[1771853093226,2.78195523,80.611,80.584,2.96084699]
[1771853094426,2.78195523,80.611,80.585,43.43240056]
[1771853094627,2.78195523,80.611,80.586,2.96084699]
[1771853095927,2.78195523,80.609,80.586,2.96084699]
[1771853096128,2.78195523,80.629,80.601,2.96084699]
[1771853096912,2.78195523,80.629,80.603,2.96084699]
[1771853099329,2.78195523,80.619,80.592,2.96084699]
[1771853099729,2.78195523,80.629,80.601,2.96084699]
[1771853101633,15.18300859,80.639,80.603,2.96084699]
[1771853101837,2.78195523,80.638,80.603,2.96084699]
[1771853106339,2.78195523,80.636,80.605,2.96084699]
[1771853108245,2.78195523,80.636,80.607,2.96084699]
[1771853108542,2.78195523,80.634,80.607,2.96084699]
[1771853109139,2.78195523,80.629,80.607,2.96084699]
[1771853110347,2.78195523,80.629,80.609,2.96084699]
[1771853113246,3.69383402,80.659,80.591,1.16024698]
[1771853113247,2.78195523,80.642,80.611,2.96084699]
[1771853113937,2.78195523,80.649,80.611,2.96084699]
[1771853114140,2.78195523,80.649,80.621,2.96084699]
[1771853114541,2.78195523,80.654,80.621,2.96084699]
[1771853114752,2.78195523,80.654,80.61,105.44597443]
[1771853114753,2.78195523,80.662,80.631,2.96084699]
[1771853115546,2.78195523,80.673,80.641,2.96084699]
[1771853117256,2.78195523,80.678,80.651,2.96084699]
[1771853117550,2.78195523,80.678,80.653,2.89823253]
[1771853119754,2.78195523,80.678,80.655,2.83398835]
[1771853122570,2.78195523,80.678,80.657,2.83398835]
[1771853122873,2.83966925,80.689,80.661,2.83398835]
[1771853125868,2.83966925,80.687,80.661,2.83398835]
[1771853126861,2.83966925,80.669,80.644,12.40008506]
[1771853127062,2.83966925,80.669,80.644,15.23407341]
[1771853127360,2.83966925,80.669,80.645,2.83398835]
[1771853128863,2.83966925,80.669,80.646,12.39987104]
[1771853129462,2.83966925,80.669,80.647,2.83398835]
[1771853132472,2.83966925,80.667,80.647,2.83398835]
[1771853132643,2.83966925,80.667,80.631,2.83398835]
[1771853132848,2.83966925,80.659,80.621,2.83398835]
[1771853133065,2.83966925,80.649,80.621,2.83398835]
[1771853134573,2.83966925,80.656,80.633,2.83398835]
[1771853136488,2.83966925,80.656,80.634,12.40171639]
[1771853136710,2.83966925,80.656,80.634,15.23570474]
[1771853140290,2.83966925,80.656,80.635,2.83398835]
[1771853141877,2.83966925,80.656,80.63,2.83398835]
[1771853142082,2.83966925,80.656,80.631,12.40217782]
[1771853142295,2.83966925,80.656,80.632,2.83398835]
[1771853142691,2.83966925,80.649,80.624,2.83398835]
[1771853142896,2.83966925,80.639,80.614,2.83398835]
[1771853143196,2.83966925,80.639,80.615,12.40463933]
[1771853143896,2.83966925,80.639,80.615,15.23862768]
[1771853145496,2.83966925,80.645,80.616,2.83398835]
[1771853145699,2.83966925,80.649,80.616,2.83398835]
[1771853147197,3.87269694,80.65,80.61,3.87269694]
[1771853147198,2.83966925,80.647,80.618,2.83398835]
[1771853148299,2.72539905,80.645,80.62,2.85476771]
[1771853151494,2.72539905,80.639,80.61,2.85476771]
[1771853154998,2.72539905,80.639,80.611,12.40525486]
[1771853155192,2.72539905,80.639,80.612,2.85476771]
[1771853157803,2.72539905,80.639,80.614,2.85476771]
[1771853158992,2.72539905,80.638,80.614,2.85476771]
[1771853160303,3.87269694,80.63,80.601,2.85476771]
[1771853160494,2.72539905,80.629,80.601,2.85476771]
[1771853161499,3.87269694,80.65,80.611,2.85476771]
[1771853161992,12.3986411,80.654,80.621,2.85476771]
[1771853162801,12.39819624,80.657,80.623,2.85476771]
[1771853164512,104.1,80.679,80.623,2.85476771]
[1771853164513,2.04279051,80.678,80.65,3.87269694]
[1771853164713,2.04279051,80.683,80.651,2.85476771]
[1771853164909,3.87269694,80.68,80.651,2.85476771]
[1771853165209,2.04279051,80.679,80.651,2.85476771]
[1771853165807,12.39495277,80.678,80.651,2.85476771]
[1771853166015,2.04010565,80.677,80.651,2.85476771]
[1771853170813,1.96562658,80.675,80.651,2.85476771]
[1771853172093,1.96562658,80.675,80.653,2.85476771]
[1771853175304,1.90906452,80.673,80.653,2.85476771]
[1771853182329,1.79096364,80.671,80.653,2.85476771]
[1771853184227,3.86912199,80.67,80.653,2.85476771]
[1771853184528,3.86912199,80.67,80.648,2.61101056]
[1771853184529,1.76634521,80.668,80.648,2.61101056]
[1771853185623,1.76634521,80.668,80.636,2.61101056]
[1771853185822,1.74228907,80.649,80.602,12.40664003]
[1771853186015,43.38825045,80.667,80.6,3.86912199]
[1771853186221,12.39664298,80.667,80.631,2.61101056]
[1771853186427,5.61141106,80.68,80.641,2.61101056]
[1771853186628,5.61141106,80.68,80.651,2.61101056]
[1771853186826,1.74228907,80.68,80.651,2.61101056]
[1771853187133,1.73046784,80.679,80.651,2.61101056]
[1771853187624,1.71878238,80.676,80.651,2.61101056]
[1771853188334,1.71878238,80.676,80.646,12.3998213]
[1771853188335,1.71878238,80.669,80.646,2.61101056]
[1771853190920,1.71878238,80.669,80.647,15.01072784]
[1771853191635,1.71878238,80.669,80.648,2.61101056]
[1771853193336,1.6623378,80.668,80.643,2.61101056]
[1771853194736,30.98419023,80.687,80.643,2.61101056]
[1771853194920,3.86912199,80.67,80.643,2.61101056]
[1771853195116,1.64065719,80.669,80.643,2.61101056]
[1771853196035,1.64065719,80.669,80.645,2.61101056]
[1771853197439,1.64065719,80.669,80.646,12.39987104]
[1771853197737,1.64065719,80.669,80.647,2.61101056]
[1771853199322,1.59877023,80.659,80.611,2.61101056]
[1771853199522,3.86912199,80.64,80.613,2.61101056]
[1771853201242,1.59877023,80.648,80.613,2.61101056]
[1771853202340,1.59877023,80.648,80.615,2.61101056]
[1771853203220,1.59877023,80.648,80.621,2.61101056]
[1771853203519,3.86912199,80.65,80.621,2.61101056]
[1771853205340,12.39888047,80.653,80.623,2.61101056]
[1771853207644,1.50214254,80.657,80.625,2.48446667]
[1771853207836,1.50214254,80.673,80.641,2.48446667]
[1771853208143,3.86912199,80.67,80.641,2.48446667]
[1771853208325,5.37126453,80.67,80.641,2.48446667]
[1771853208526,1.50214254,80.669,80.641,2.48446667]
[1771853211645,1.50214254,80.669,80.643,2.48446667]
[1771853217356,3.86912199,80.69,80.651,2.57338437]
[1771853217651,3.86912199,80.66,80.632,2.57338437]
[1771853218031,3.86912199,80.67,80.632,2.57338437]
[1771853218251,3.86912199,80.67,80.634,2.57338437]
[1771853220948,3.86912199,80.67,80.636,2.57338437]
[1771853221153,3.86912199,80.67,80.641,2.57338437]
[1771853221352,43.37480791,80.692,80.641,2.57338437]
[1771853221644,3.86912199,80.68,80.643,2.57338437]
[1771853223152,12.39479914,80.679,80.645,2.57338437]
[1771853223739,3.86912199,80.68,80.645,2.57338437]
[1771853226260,3.86912199,80.68,80.647,2.57338437]
[1771853227657,3.86912199,80.67,80.646,13.56011802]
[1771853227854,3.86912199,80.67,80.647,2.57338437]
[1771853232160,3.86912199,80.67,80.648,12.39956353]
[1771853232565,3.86912199,80.67,80.649,2.57338437]
[1771853232769,12.39633564,80.669,80.649,2.57338437]
[1771853232948,12.59158418,80.7,80.661,2.57338437]
[1771853233149,77.42527045,80.71,80.648,12.39956353]
[1771853233150,0.2,80.71,80.681,2.57338437]
[1771853233465,0.2,80.71,80.691,2.57338437]
[1771853234165,0.2,80.71,80.693,2.57338437]
[1771853234775,12.39019192,80.709,80.688,2.57338437]
[1771853236872,4.06650084,80.71,80.689,12.39326302]
[1771853237069,0.2,80.71,80.69,2.57338437]
[1771853237372,4.06650084,80.71,80.69,2.57338437]
[1771853239565,12.39019192,80.709,80.69,2.57338437]
[1771853239771,0.2,80.71,80.69,2.57338437]
[1771853239982,3.86650084,80.7,80.668,2.57338437]
[1771853240469,3.86650084,80.7,80.671,2.57338437]
[1771853242674,43.36567173,80.709,80.673,2.57338437]
[1771853249681,43.36567173,80.709,80.675,2.57338437]
[1771853252676,43.36567173,80.709,80.677,2.57338437]
[1771853252876,43.36567173,80.709,80.666,1.16024698]
[1771853252877,3.86650084,80.69,80.666,1.16024698]
[1771853253080,3.86650084,80.7,80.665,12.39684303]
[1771853254888,12.39172728,80.699,80.667,12.39664298]
[1771853255176,30.95817619,80.755,80.68,3.86650084]
[1771853255376,61.90979863,80.763,80.731,2.27338437]
[1771853255377,0.38152649,80.763,80.731,2.27338437]
[1771853255574,0.38152649,80.763,80.696,3.69383402]
[1771853255575,12.38257901,80.759,80.741,3.43e-06]
[1771853255883,2.36279902,80.749,80.72,3.86650084]
[1771853256074,2.36279902,80.748,80.72,3.86650084]
[1771853257357,2.36279902,80.748,80.721,12.38834999]
[1771853257556,2.36279902,80.748,80.722,2.25125241]
[1771853258781,3.86649429,80.747,80.724,2.25125241]
[1771853259076,2.36279902,80.774,80.74,3.86650084]
[1771853259281,2.36279902,80.774,80.751,2.25125241]
[1771853259477,2.36279902,80.769,80.743,2.25125241]
[1771853260762,0.2,80.77,80.751,2.25125241]
[1771853262878,0.2,80.77,80.753,2.25125241]
[1771853265594,0.2,80.77,80.754,14.63453992]
[1771853266987,2.36279902,80.769,80.745,2.25125241]
[1771853270190,2.36279902,80.769,80.747,2.28591118]
[1771853271690,2.36279902,80.769,80.731,1.16024698]
[1771853271892,2.36551944,80.759,80.71,3.86650084]
[1771853272198,2.36551944,80.759,80.72,3.86650084]
[1771853272995,2.36551944,80.759,80.721,43.35922497]
[1771853273170,2.30657317,80.759,80.733,2.28591118]
[1771853276898,2.36551944,80.757,80.734,14.67226637]
[1771853277094,2.36551944,80.757,80.73,12.38682479]
[1771853277399,2.36551944,80.757,80.731,2.28591118]
[1771853278897,2.36551944,80.757,80.732,12.38666204]
[1771853279698,2.36551944,80.757,80.732,14.67257322]
[1771853280304,2.36551944,80.757,80.733,2.28591118]
[1771853280499,2.36551944,80.763,80.733,2.28591118]
[1771853281002,2.36551944,80.759,80.733,2.28591118]
[1771853282199,2.36551944,80.739,80.721,14.67426117]
[1771853282789,2.36551944,80.739,80.722,2.28591118]
[1771853283608,2.36551944,80.739,80.723,12.38804306]
[1771853285010,2.36551944,80.739,80.723,2.28591118]
[1771853286608,2.36551944,80.746,80.725,2.28591118]
[1771853287811,2.36551944,80.746,80.726,12.38758268]
[1771853288192,0.2,80.77,80.728,2.28591118]
[1771853288414,3.86650084,80.76,80.728,2.28591118]
[1771853289808,12.38252083,80.759,80.73,2.28591118]
[1771853290112,0.6614734,80.758,80.73,2.28591118]
[1771853293402,0.6614734,80.758,80.732,2.28591118]
[1771853295514,0.6614734,80.758,80.734,2.28591118]
[1771853296309,0.667581,80.763,80.736,2.28591118]
[1771853296498,4.06106027,80.77,80.736,2.28591118]
[1771853296499,0.2,80.77,80.736,2.28591118]
[1771853297214,12.58087519,80.77,80.736,2.28591118]
[1771853297812,0.2,80.77,80.736,2.28591118]
[1771853298115,0.2,80.77,80.735,43.35170619]
[1771853298116,0.2,80.77,80.741,2.23699764]
[1771853299098,0.2,80.78,80.751,2.44661591]
[1771853301600,0.2,80.78,80.752,43.34257974]
[1771853301800,0.2,80.78,80.753,2.44661591]
[1771853306207,0.2,80.8,80.771,2.44661591]
[1771853306526,0.87553224,80.833,80.792,2.44661591]
[1771853306701,0.2,80.86,80.811,2.44661591]
[1771853306702,0.87601007,80.845,80.811,2.44661591]
[1771853306906,0.97601007,80.839,80.811,2.44661591]
[1771853308302,12.36876499,80.849,80.813,2.44661591]
[1771853308504,0.1,80.85,80.82,3.86106027]
[1771853308707,0.1,80.85,80.821,2.44661591]
[1771853309343,0.2,80.86,80.832,2.44661591]
[1771853309523,0.2,80.86,80.831,2.44661591]
[1771853310105,0.2,80.86,80.841,2.44661591]
[1771853310302,0.2,80.86,80.843,2.44661591]
[1771853310509,0.1,80.87,80.851,2.44661591]
[1771853310704,3.86106027,80.88,80.852,2.44661591]
[1771853310914,2.33009123,80.869,80.837,12.37049703]
[1771853311924,2.33009123,80.859,80.824,12.3725626]
[1771853312124,2.33009123,80.859,80.824,43.30396911]
[1771853312125,3.86106027,80.85,80.824,43.30396911]
[1771853312429,2.33009123,80.859,80.82,3.86106027]
[1771853312940,2.33009123,80.859,80.821,2.44661591]
[1771853315433,2.33009123,80.859,80.823,2.44661591]
[1771853316740,3.86106027,80.85,80.823,2.44661591]
[1771853317035,3.86106027,80.85,80.813,30.93552228]
[1771853317036,3.86106027,80.83,80.813,2.44661591]
[1771853317340,2.33009123,80.834,80.813,2.44661591]
[1771853317638,2.33009123,80.848,80.815,2.44661591]
[1771853317813,12.36902879,80.848,80.815,2.44661591]
[1771853318016,3.86106027,80.84,80.815,2.44661591]
[1771853318225,6.1911515,80.84,80.815,2.44661591]
[1771853318717,2.33009123,80.839,80.815,2.44661591]
[1771853319315,3.86106027,80.83,80.805,2.44661591]
[1771853319514,43.29125321,80.848,80.76,3.86106027]
[1771853319515,2.33009123,80.817,80.76,3.86106027]
[1771853319726,2.33009123,80.799,80.76,3.86106027]